fUST/lending_fUST_20250729
["ID","MTS","AMOUNT","RATE_DAILY","PERIOD"]
[375875598,1753770635406,-698.46,0.00021917,2]
[375875599,1753770635416,-151.0,0.00021918,2]
[375875600,1753770635425,-500.0,0.00021918,2]
[375875601,1753770635435,-2754.75,0.00022,7]
[375875602,1753770635444,-402.14,0.00022,7]
[375875603,1753770635454,-348.0,0.00022075,2]
[375875604,1753770635463,-583.9,0.000221,4]
[375875605,1753770635472,-240.0,0.00022188,2]
[375875606,1753770635484,-383.77,0.00022191,2]
[375875607,1753770635504,-460.0,0.00022191,2]
[375875608,1753770635513,-817.99,0.00022191,2]
[375875609,1753770635522,-460.0,0.00022191,2]
[375875610,1753770635532,-698.46,0.00022191,2]
[375875611,1753770635541,-238.38484917,0.00022192,2]
[375875612,1753770635594,-261.61515083,0.00022192,2]
[375875613,1753770635612,-360.0,0.00022248,2]
[375875614,1753770635621,-1669.88260092,0.00022428,2]
[375875615,1753770635631,-296.498888,0.00022428,2]
[375875616,1753770635641,-3396.35593794,0.00022431,2]
[375875617,1753770635651,-587.0,0.00022443,2]
[375875618,1753770635661,-460.0,0.00022465,2]
[375875619,1753770635671,-817.99,0.00022465,2]
[375875620,1753770635680,-460.0,0.00022465,2]
[375875621,1753770635689,-698.46,0.00022465,2]
[375875622,1753770635698,-500.0,0.00022466,2]
[375875623,1753770635707,-500.0,0.00022473,2]
[375875624,1753770635715,-42566.59908223,0.0002249,7]
[375875633,1753770638589,-460.0,0.00019178,2]
[375875635,1753770638599,-40.0,0.0002248,10]
[375875636,1753770638610,-5316.32,0.0002248,10]
[375875637,1753770638619,-1477.02042081,0.0002249,7]
[375875639,1753770638675,-15824.68558291,0.0002249,7]
[375875640,1753770638687,-1252.40936801,0.0002249,7]
[375875641,1753770638765,-15517.07947574,0.0002249,7]
[375875642,1753770638778,-3180.98447647,0.0002249,7]
[375875643,1753770638923,-222039.90910031,0.0002249,7]
[375875644,1753770638933,-583.9,0.00022528,5]
[375875645,1753770638942,-500.0,0.00022594,2]
[375875647,1753770638952,-460.0,0.00022739,2]
[375875648,1753770638962,-817.99,0.00022739,2]
[375875649,1753770638971,-460.0,0.00022739,2]
[375875650,1753770638981,-698.46,0.00022739,2]
[375875651,1753770638991,-500.0,0.0002274,2]
[375875652,1753770639000,-500.0,0.00022873,2]
[375875653,1753770639010,-208.83618979,0.00022873,2]
[375875654,1753770639020,-23761.13235821,0.000229,7]
[375875655,1753770639030,-1433.09,0.000229,7]
[375875656,1753770639039,-3079.01669337,0.00022929,2]
[375875657,1753770639049,-583.9,0.00022957,5]
[375875658,1753770639059,-500.0,0.00022957,2]
[375875659,1753770639069,-280.15836526,0.00022957,2]
[375875660,1753770639078,-1070.34884932,0.00022957,2]
[375875661,1753770639088,-1070.34884932,0.00022957,2]
[375875662,1753770639097,-1070.34884932,0.00022957,2]
[375875663,1753770639106,-1070.34884932,0.00022957,2]
[375875664,1753770639116,-1070.34884932,0.00022957,2]
[375875665,1753770639125,-1070.34884932,0.00022957,2]
[375875666,1753770639134,-1070.34884932,0.00022957,2]
[375875667,1753770639144,-1070.34884932,0.00022957,2]
[375875668,1753770639156,-1070.34884932,0.00022957,2]
[375875669,1753770639165,-1070.34884932,0.00022957,2]
[375875670,1753770639174,-1070.34884932,0.00022957,2]
[375875671,1753770639183,-969.0,0.00022958,2]
[375875672,1753770639193,-407.0,0.00022958,2]
[375875673,1753770639203,-425.682,0.00022958,2]
[375875674,1753770639212,-2159.0,0.00022958,2]
[375875675,1753770639221,-841.06558547,0.00023,3]
[375875676,1753770639230,-1127.79,0.00023,2]
[375875677,1753770639239,-460.0,0.00023013,2]
[375875678,1753770639249,-817.99,0.00023013,2]
[375875679,1753770639258,-460.0,0.00023013,2]
[375875680,1753770639269,-698.46,0.00023013,2]
[375875681,1753770639279,-500.0,0.00023014,2]
[375875682,1753770639289,-500.0,0.00023021,2]
[375875683,1753770639299,-296.49888797,0.00023046,2]
[375875684,1753770639309,-460.0,0.00023287,2]
[375875685,1753770639318,-817.99,0.00023287,2]
[375875686,1753770639328,-460.0,0.00023287,2]
[375875687,1753770639337,-698.46,0.00023287,2]
[375875688,1753770639347,-500.0,0.00023288,2]
[375875689,1753770639356,-583.9,0.00023386,5]
[375875690,1753770639366,-222.42619371,0.00023561,2]
[375875691,1753770639375,-817.99,0.00023561,2]
[375875692,1753770639384,-460.0,0.00023561,2]
[375875693,1753770639394,-698.46,0.00023561,2]
[375875694,1753770639405,-500.0,0.00023562,2]
[375875695,1753770639413,-200.0,0.00023578,15]
[375875696,1753770639423,-200.0,0.00023578,15]
[375875697,1753770639432,-200.0,0.00023578,15]
[375875698,1753770639442,-200.0,0.00023578,15]
[375875699,1753770639451,-200.0,0.00023578,15]
[375875700,1753770639461,-200.0,0.00023578,15]
[375875701,1753770639470,-366.0,0.00023578,15]
[375875702,1753770639479,-1669.8826009,0.00023664,2]
[375875703,1753770639489,-296.49888797,0.00023664,2]
[375875704,1753770639500,-508.64,0.0002367,4]
[375875705,1753770639509,-508.64,0.0002367,3]
[375875706,1753770639518,-500.0,0.0002369,2]
[375875707,1753770639529,-151.0,0.000237,5]
[375875708,1753770639539,-508.64,0.0002377,5]
[375875709,1753770639548,-508.64,0.0002377,5]
[375875710,1753770639558,-2754.75,0.000238,7]
[375875711,1753770639567,-583.9,0.00023815,6]
[375875712,1753770639576,-817.99,0.00023835,2]
[375875713,1753770639590,-460.0,0.00023835,2]
[375875714,1753770639600,-698.46,0.00023835,2]
[375875715,1753770639609,-500.0,0.00023836,2]
[375875716,1753770639619,-154.05824,0.0002385,3]
[375875717,1753770639629,-508.64,0.0002387,5]
[375875718,1753770639639,-508.64,0.0002387,5]
[375875719,1753770639649,-154.05824,0.000239,3]
[375875720,1753770639659,-156.566386,0.000239,3]
[375875721,1753770639668,-154.311645,0.000239,3]
[375875722,1753770639677,-154.311643,0.000239,3]
[375875723,1753770639687,-2018.60892275,0.000239,2]
[375875724,1753770639696,-508.64,0.0002397,5]
[375875725,1753770639705,-158.157196,0.00023973,2]
[375875726,1753770639715,-508.66537039,0.0002407,6]
[375875727,1753770639724,-817.99,0.00024109,2]
[375875728,1753770639733,-319.48,0.00024109,2]
[375875729,1753770639743,-698.46,0.00024109,2]
[375875730,1753770639753,-344.286637,0.0002411,2]
[375875731,1753770639762,-583.9,0.00024243,6]
[375875732,1753770639771,-296.49888797,0.00024282,2]
[375875733,1753770639781,-151.0,0.000243,9]
[375875734,1753770639791,-151.0,0.000243,10]
[375875735,1753770639800,-817.99,0.00024383,2]
[375875736,1753770639809,-698.46,0.00024383,2]
[375875738,1753770639819,-1433.09,0.000244,7]
[375875739,1753770639829,-6882.84879138,0.0002465,2]
[375875740,1753770639839,-817.99,0.00024657,2]
[375875741,1753770639848,-698.46,0.00024657,2]
[375875742,1753770639858,-185.78895639,0.00024658,2]
[375875743,1753770639868,-500.0,0.00024658,2]
[375875744,1753770639877,-583.9,0.00024672,6]
[375875745,1753770639887,-170.45776717,0.00024767,2]
[375875746,1753770639896,-155.0,0.00024899,2]
[375875747,1753770639907,-11711.13,0.000249,2]
[375875748,1753770639917,-552229.44612966,0.000249,2]
[375875749,1753770639930,-199254.51418734,0.000249,2]
[375875750,1753770639939,-1669.8826009,0.000249,2]
[375875751,1753770639949,-296.49888797,0.000249,2]
[375875752,1753770639958,-817.99,0.00024931,2]
[375875753,1753770639968,-698.46,0.00024931,2]
[375875754,1753770639977,-500.0,0.00024932,2]
[375875755,1753770639987,-191761.59929948,0.00025,30]
[375875775,1753770640436,-271.28709899,0.00018986,2]
[375875776,1753770640449,-4728.71290101,0.00018986,2]
[375875777,1753770640458,-460.0,0.00019178,2]
[375875778,1753770640467,-460.0,0.00019452,2]
[375875779,1753770640476,-10323.60054607,0.00025,30]
[375875780,1753770640500,-4815.82450434,0.00025,30]
[375875781,1753770640511,-923.88502332,0.00025,30]
[375876053,1753770643479,-242.06848977,0.00018719,2]
[375876055,1753770643489,-500.0,0.00019177,2]
[375876057,1753770643498,-438.40592917,0.00019177,2]
[375876059,1753770643509,-61.59407083,0.00019177,2]
[375876061,1753770643519,-500.0,0.00019177,2]
[375876062,1753770643528,-249.06278988,0.00019177,2]
[375876065,1753770643542,-460.0,0.00019726,2]
[375876067,1753770643551,-460.0,0.0002,2]
[375876069,1753770643560,-436.02,0.00020273,2]
[375876071,1753770643570,-224.51,0.0002313,2]
[375876073,1753770643581,-2199.76494121,0.000249,2]
[375876075,1753770643591,-15409.05586273,0.00025,30]
[375876077,1753770643602,-953.68250643,0.00025,30]
[375876079,1753770643613,-10644.68616152,0.00025,30]
[375876372,1753770646482,-272.15,0.0002499,3]
[375876374,1753770646492,-694.7975594,0.00025,30]
[375876376,1753770646504,-694.50938659,0.00025,30]
[375876386,1753770646592,-4342.09014983,0.00025,30]
[375876453,1753770647272,-6043.2265517,0.00025,30]
[375876455,1753770647283,-10721.34521516,0.00025,30]
[375876457,1753770647295,-11828.76,0.00025,30]
[375876459,1753770647312,-630.88445096,0.00019177,2]
[375876461,1753770647321,-24387.2870353,0.00025,30]
[375876464,1753770647333,-766.67821657,0.00025,30]
[375876783,1753770672482,157.46788711,7.2e-07,2]
[375876799,1753770776806,872.131765,0.0001869,2]
[375876800,1753770844637,4074.52763775,0.000187,2]
[375876801,1753770844662,925.47236225,0.000187,2]
[375876802,1753770860403,5000.0,0.000187,2]
[375876803,1753770876399,4074.52763775,0.000187,2]
[375876804,1753770876421,925.47236225,0.000187,2]
[375876805,1753770893961,5000.0,0.000187,2]
[375876806,1753770900218,216.219977,0.00018274,2]
[375876807,1753770900612,259.67012243,0.00018603,2]
[375876808,1753770909857,3598.63753832,0.000187,2]
[375876809,1753770909881,1401.36246168,0.000187,2]
[375876810,1753770913357,257.359175,0.00013699,2]
[375876812,1753770925319,5000.0,0.000187,2]
[375876813,1753770941400,3341.27836332,0.000187,2]
[375876814,1753770941423,1658.72163668,0.000187,2]
[375876815,1753770957642,5000.0,0.000187,2]
[375876816,1753770973622,3341.27836332,0.000187,2]
[375876817,1753770973645,1658.72163668,0.000187,2]
[375876818,1753770989469,5000.0,0.000187,2]
[375876819,1753771006188,3341.27836332,0.000187,2]
[375876820,1753771006211,1658.72163668,0.000187,2]
[375876821,1753771022092,5000.0,0.000187,2]
[375876822,1753771038131,3341.27836332,0.000187,2]
[375876823,1753771038156,1658.72163668,0.000187,2]
[375876834,1753771055438,5000.0,0.000187,2]
[375876835,1753771071203,3341.27836332,0.000187,2]
[375876836,1753771071228,1658.72163668,0.000187,2]
[375876837,1753771087265,5000.0,0.000187,2]
[375876838,1753771102655,3341.27836332,0.000187,2]
[375876839,1753771102679,1658.72163668,0.000187,2]
[375876840,1753771118088,5000.0,0.000187,2]
[375876841,1753771134454,3341.27836332,0.000187,2]
[375876842,1753771134480,1658.72163668,0.000187,2]
[375876843,1753771150244,5000.0,0.000187,2]
[375876844,1753771159818,1912.3081558,0.00018161,2]
[375876845,1753771167836,1428.97020752,0.000187,2]
[375876846,1753771167862,3571.02979248,0.000187,2]
[375876847,1753771183713,5000.0,0.000187,2]
[375876848,1753771199096,1428.97020752,0.000187,2]
[375876849,1753771199119,3571.02979248,0.000187,2]
[375876850,1753771202061,177.42407116,0.00018274,2]
[375876851,1753771206490,6251.54613636,0.00018161,2]
[375876852,1753771206512,3506.88097664,0.00018161,2]
[375876853,1753771215048,5000.0,0.000187,2]
[375876854,1753771223741,1493.11902336,0.00018161,2]
[375876855,1753771223769,8506.88097664,0.00018161,2]
[375876856,1753771232142,1493.11902336,0.000187,2]
[375876857,1753771232166,3506.88097664,0.000187,2]
[375876858,1753771235990,6493.11902336,0.00018103,2]
[375876859,1753771236014,10000.0,0.00018103,2]
[375876860,1753771236039,8406.88097664,0.00018103,2]
[375876861,1753771249732,1593.11902336,0.000187,2]
[375876862,1753771249760,3406.88097664,0.000187,2]
[375876863,1753771257690,163.317484,0.00018247,2]
[375876864,1753771257919,163.317484,0.00018247,120]
[375876865,1753771258636,5000.0,0.000187,2]
[375876866,1753771266836,1429.80153936,0.000187,2]
[375876867,1753771266860,3570.19846064,0.000187,2]
[375876868,1753771275274,5000.0,0.000187,2]
[375876869,1753771283981,1429.80153936,0.000187,2]
[375876870,1753771284004,3570.19846064,0.000187,2]
[375876871,1753771291894,5000.0,0.000187,2]
[375876872,1753771300522,1429.80153936,0.000187,2]
[375876873,1753771300550,3570.19846064,0.000187,2]
[375876874,1753771309345,4540.68308553,0.000187,2]
[375876876,1753771317714,1889.11845383,0.000187,2]
[375876877,1753771317739,3110.88154617,0.000187,2]
[375876878,1753771326929,166.0,0.00018178,2]
[375876879,1753771333637,5000.0,0.000187,2]
[375876880,1753771349060,1723.11845383,0.000187,2]
[375876881,1753771349083,3276.88154617,0.000187,2]
[375876882,1753771365087,5000.0,0.000187,2]
[375876883,1753771381696,1723.11845383,0.000187,2]
[375876884,1753771381720,3276.88154617,0.000187,2]
[375876885,1753771397879,5000.0,0.000187,2]
[375876886,1753771414817,1723.11845383,0.000187,2]
[375876887,1753771414841,3276.88154617,0.000187,2]
[375876888,1753771430166,5000.0,0.000187,2]
[375876889,1753771446062,1723.11845383,0.000187,2]
[375876890,1753771446086,3276.88154617,0.000187,2]
[375876891,1753771461393,5000.0,0.000187,2]
[375876892,1753771477219,1723.11845383,0.000187,2]
[375876893,1753771477243,3276.88154617,0.000187,2]
[375876894,1753771485331,6723.11845383,0.00018121,2]
[375876895,1753771485353,10000.0,0.00018121,2]
[375876896,1753771485376,10000.0,0.00018121,2]
[375876897,1753771485397,10000.0,0.00018121,2]
[375876898,1753771485419,10000.0,0.00018121,2]
[375876899,1753771485441,10000.0,0.00018121,2]
[375876900,1753771485463,6017.16012347,0.00018121,2]
[375876901,1753771493625,3982.83987653,0.000187,2]
[375876902,1753771493650,1017.16012347,0.000187,2]
[375876904,1753771505443,159.863808,0.00018177,2]
[375876905,1753771505823,476.79713508,0.00018274,2]
[375876906,1753771511076,5000.0,0.000187,2]
[375876907,1753771516246,3346.17893345,0.00018082,2]
[375876908,1753771516269,528.03507975,0.00018082,2]
[375876909,1753771528800,5000.0,0.000187,2]
[375876910,1753771534798,4471.96492025,0.00018082,2]
[375876911,1753771534821,10000.0,0.00018082,2]
[375876912,1753771534845,10000.0,0.00018082,2]
[375876913,1753771534871,10000.0,0.00018082,2]
[375876914,1753771534894,8480.63484115,0.00018082,2]
[375876915,1753771544899,1519.36515885,0.000187,2]
[375876916,1753771544923,3480.63484115,0.000187,2]
[375876917,1753771560799,5000.0,0.000187,2]
[375876918,1753771563625,225.13567612,0.00018639,2]
[375876919,1753771576657,1294.22948273,0.000187,2]
[375876920,1753771576681,3705.77051727,0.000187,2]
[375876921,1753771591959,5000.0,0.000187,2]
[375876922,1753771598785,250.0,0.00017704,2]
[375876923,1753771608133,1044.22948273,0.000187,2]
[375876924,1753771608158,3955.77051727,0.000187,2]
[375876925,1753771624306,5000.0,0.000187,2]
[375876926,1753771633160,-288.95882216,0.00018739,2]
[375876927,1753771633180,-637.88326196,0.00018739,2]
[375876928,1753771634190,-473.89948482,0.00018739,2]
[375876929,1753771634210,-288.95882216,0.00018824,2]
[375876930,1753771634233,-1200.0,0.00018838,2]
[375876931,1753771634254,-7043.1637219,0.00018839,2]
[375876932,1753771634276,-300.0,0.00018883,2]
[375876933,1753771634298,-1200.0,0.00018884,2]
[375876934,1753771634319,-202.59879135,0.00018886,2]
[375876935,1753771634343,-2031.09221931,0.000189,2]
[375876936,1753771634368,-171.0,0.00018904,3]
[375876937,1753771634392,-288.95882216,0.00018909,2]
[375876938,1753771634412,-164.142378,0.00018993,2]
[375876939,1753771640222,1044.22948273,0.000187,2]
[375876940,1753771640247,3955.77051727,0.000187,2]
[375876941,1753771643082,-160.15683094,0.00018739,2]
[375876942,1753771643104,-160.15683092,0.00018852,2]
[375876943,1753771643124,-124.81644416,0.00018993,2]
[375876944,1753771643145,-283.6247087,0.00019078,2]
[375876945,1753771643165,-288.95882216,0.00019078,2]
[375876946,1753771643186,-22.65036312,0.00019173,2]
[375876947,1753771644083,-477.34963688,0.00019173,2]
[375876948,1753771644110,-500.0,0.00019177,2]
[375876949,1753771644130,-333.75261399,0.00019177,2]
[375876950,1753771644152,-194.34030999,0.00019177,2]
[375876951,1753771644171,-172.57006425,0.00019177,2]
[375876952,1753771644191,-190.11738709,0.00019177,2]
[375876953,1753771656256,5000.0,0.000187,2]
[375876954,1753771673278,1044.22948273,0.000187,2]
[375876955,1753771673301,3955.77051727,0.000187,2]
[375876956,1753771689147,5000.0,0.000187,2]
[375876958,1753771705964,1044.22948273,0.000187,2]
[375876959,1753771705990,3955.77051727,0.000187,2]
[375876961,1753771721338,5000.0,0.000187,2]
[375876962,1753771739691,1044.22948273,0.000187,2]
[375876963,1753771739717,3955.77051727,0.000187,2]
[375876964,1753771755009,5000.0,0.000187,2]
[375876965,1753771771234,1044.22948273,0.000187,2]
[375876966,1753771771258,3955.77051727,0.000187,2]
[375876967,1753771777288,199.7315824,0.00017993,2]
[375876969,1753771786583,5000.0,0.000187,2]
[375876970,1753771802606,844.49790033,0.000187,2]
[375876971,1753771802631,4155.50209967,0.000187,2]
[375876972,1753771808239,187.925143,0.00018506,2]
[375876973,1753771808616,230.115172,0.00018597,2]
[375876974,1753771808998,433.83440979,0.00018602,2]
[375876975,1753771820139,4992.62317554,0.000187,2]
[375877653,1753771839092,-7.37682446,0.000187,2]
[375877655,1753771839102,-160.15683092,0.00018965,2]
[375877657,1753771839112,-160.15683092,0.00019078,2]
[375877659,1753771839121,-248.17162013,0.00019078,2]
[375877661,1753771839131,-500.0,0.00019173,2]
[375877663,1753771839140,-300.0,0.00019177,2]
[375877665,1753771839149,-1200.0,0.00019177,2]
[375877668,1753771839165,-460.0,0.00019178,2]
[375877670,1753771839178,-460.0,0.00019178,2]
[375877672,1753771839187,-479.2243486,0.00019178,2]
[375877674,1753771839197,-461.6130995,0.00019178,2]
[375877676,1753771839207,-503.97,0.00019178,2]
[375877678,1753771839216,-460.0,0.00019178,2]
[375877680,1753771839226,-460.0,0.00019178,2]
[375877683,1753771839237,-460.0,0.00019178,2]
[375877702,1753771839246,-220.06161167,0.00019178,2]
[375877705,1753771839424,-460.0,0.00019178,2]
[375877707,1753771839434,-460.0,0.00019178,2]
[375877709,1753771839443,-460.0,0.00019178,2]
[375877711,1753771839452,-460.0,0.00019178,2]
[375877713,1753771839462,-460.0,0.00019178,2]
[375877715,1753771839471,-460.0,0.00019178,2]
[375877717,1753771839480,-241.34167746,0.00019178,2]
[375877719,1753771839491,-460.0,0.00019178,2]
[375877721,1753771839501,-267.17380269,0.00019178,2]
[375877723,1753771839510,-460.0,0.00019178,2]
[375877725,1753771839520,-460.0,0.00019178,2]
[375877726,1753771839530,-460.0,0.00019178,2]
[375877728,1753771839540,-460.0,0.00019178,2]
[375877731,1753771839550,-460.0,0.00019178,2]
[375877732,1753771839559,-460.0,0.00019178,2]
[375877735,1753771839569,-463.11902597,0.00019178,2]
[375877737,1753771839578,-460.0,0.00019178,2]
[375877738,1753771839587,-460.0,0.00019178,2]
[375877740,1753771839596,-460.0,0.00019178,2]
[375877742,1753771839606,-460.0,0.00019178,2]
[375877744,1753771839615,-449.93,0.00019178,2]
[375877747,1753771839625,-168.35748362,0.00019178,2]
[375877748,1753771839634,-460.0,0.00019178,2]
[375877751,1753771839644,-460.0,0.00019178,2]
[375877753,1753771839653,-539.54,0.00019178,2]
[375877754,1753771839663,-460.0,0.00019178,2]
[375877756,1753771839672,-460.0,0.00019178,2]
[375877758,1753771839681,-460.0,0.00019178,2]
[375877760,1753771839690,-460.0,0.00019178,2]
[375877762,1753771839700,-460.0,0.00019178,2]
[375877764,1753771839710,-596.92,0.00019178,2]
[375877766,1753771839719,-460.0,0.00019178,2]
[375877769,1753771839729,-460.0,0.00019178,2]
[375877771,1753771839746,-460.0,0.00019178,2]
[375877773,1753771839756,-460.0,0.00019178,2]
[375877775,1753771839766,-460.0,0.00019178,2]
[375877777,1753771839776,-460.0,0.00019178,2]
[375877779,1753771839786,-460.0,0.00019178,2]
[375877781,1753771839796,-460.0,0.00019178,2]
[375877783,1753771839805,-515.49448744,0.00019178,2]
[375877785,1753771839815,-460.0,0.00019178,2]
[375877787,1753771839824,-460.0,0.00019178,2]
[375877789,1753771839834,-460.0,0.00019178,2]
[375877791,1753771839844,-460.0,0.00019178,2]
[375877793,1753771839854,-504.22,0.00019178,2]
[375877795,1753771839864,-460.0,0.00019178,2]
[375877797,1753771839873,-460.0,0.00019178,2]
[375877799,1753771839883,-460.0,0.00019178,2]
[375877801,1753771839893,-574.96052587,0.00019178,2]
[375877803,1753771839903,-460.0,0.00019178,2]
[375877805,1753771839913,-460.0,0.00019178,2]
[375877807,1753771839923,-593.91,0.00019178,2]
[375877809,1753771839933,-460.0,0.00019178,2]
[375877811,1753771839942,-460.0,0.00019178,2]
[375877813,1753771839956,-460.0,0.00019178,2]
[375877815,1753771839965,-460.0,0.00019178,2]
[375877817,1753771839975,-460.0,0.00019178,2]
[375877819,1753771839984,-460.0,0.00019178,2]
[375877821,1753771839995,-460.0,0.00019178,2]
[375877823,1753771840005,-460.0,0.00019178,2]
[375877825,1753771840015,-460.0,0.00019178,2]
[375877827,1753771840026,-456.82934517,0.00019178,2]
[375877830,1753771840035,-460.0,0.00019178,2]
[375877833,1753771840045,-493.08848214,0.00019178,2]
[375877835,1753771840054,-460.0,0.00019178,2]
[375877837,1753771840064,-460.0,0.00019178,2]
[375877839,1753771840074,-460.0,0.00019178,2]
[375877841,1753771840083,-460.0,0.00019178,2]
[375877843,1753771840092,-580.66,0.00019178,2]
[375877845,1753771840102,-460.0,0.00019178,2]
[375877847,1753771840111,-460.0,0.00019178,2]
[375877849,1753771840121,-460.0,0.00019178,2]
[375877851,1753771840130,-460.0,0.00019178,2]
[375877853,1753771840140,-460.0,0.00019178,2]
[375877855,1753771840150,-460.0,0.00019178,2]
[375877857,1753771840160,-6808.67561345,0.00019178,2]
[375877859,1753771840170,-306.80722437,0.00019451,2]
[375877862,1753771840179,-460.0,0.00019452,2]
[375877864,1753771840189,-460.0,0.00019452,2]
[375877866,1753771840198,-460.0,0.00019452,2]
[375877868,1753771840207,-460.0,0.00019452,2]
[375877869,1753771840216,-460.0,0.00019452,2]
[375877872,1753771840226,-539.54,0.00019452,2]
[375877874,1753771840236,-460.0,0.00019452,2]
[375877875,1753771840246,-461.48,0.00019452,2]
[375877878,1753771840256,-460.0,0.00019452,2]
[375877879,1753771840267,-460.0,0.00019452,2]
[375877881,1753771840276,-460.0,0.00019452,2]
[375877883,1753771840286,-460.0,0.00019452,2]
[375877885,1753771840295,-460.0,0.00019452,2]
[375877887,1753771840305,-460.0,0.00019452,2]
[375877889,1753771840315,-460.0,0.00019452,2]
[375877892,1753771840325,-460.0,0.00019452,2]
[375877894,1753771840335,-570.14,0.00019452,2]
[375877896,1753771840345,-229.99,0.00019452,2]
[375877897,1753771840355,-460.0,0.00019452,2]
[375877899,1753771840365,-187.09,0.00019452,2]
[375877902,1753771840377,-460.0,0.00019452,2]
[375877904,1753771840387,-206.87,0.00019452,2]
[375877906,1753771840396,-580.66,0.00019452,2]
[375877908,1753771840406,-200.0,0.00019561,15]
[375877910,1753771840416,-200.0,0.00019561,15]
[375877912,1753771840427,-200.0,0.00019561,15]
[375877914,1753771840436,-200.0,0.00019561,15]
[375877916,1753771840446,-1000.0,0.00019721,2]
[375877918,1753771840455,-460.0,0.00019726,2]
[375877920,1753771840466,-460.0,0.00019726,2]
[375877922,1753771840475,-460.0,0.00019726,2]
[375877924,1753771840485,-539.54,0.00019726,2]
[375877926,1753771840499,-516.9,0.00019726,2]
[375877928,1753771840509,-460.0,0.00019726,2]
[375877930,1753771840518,-460.0,0.00019726,2]
[375877932,1753771840528,-460.0,0.00019726,2]
[375877934,1753771840537,-460.0,0.00019726,2]
[375877936,1753771840546,-460.0,0.00019726,2]
[375877938,1753771840555,-552.09622754,0.00019726,2]
[375877940,1753771840564,-474.17,0.00019726,2]
[375877942,1753771840574,-460.0,0.00019726,2]
[375877944,1753771840583,-460.0,0.00019726,2]
[375877946,1753771840593,-460.0,0.00019726,2]
[375877948,1753771840603,-580.66,0.00019726,2]
[375877950,1753771840613,-591.62288012,0.000198,2]
[375877952,1753771840622,-500.0,0.00019873,2]
[375877954,1753771840631,-331.72,0.0001989,3]
[375877956,1753771840640,-460.0,0.00019899,2]
[375877958,1753771840650,-235.69070677,0.00019899,2]
[375877959,1753771840659,-460.0,0.00019899,2]
[375877961,1753771840670,-460.0,0.00019899,2]
[375877963,1753771840679,-460.0,0.00019899,2]
[375877965,1753771840689,-460.0,0.00019899,2]
[375877967,1753771840698,-460.0,0.00019899,2]
[375877969,1753771840709,-370000.0,0.000199,2]
[375877972,1753771840722,-2671.9162538,0.000199,2]
[375877973,1753771840731,-223.48,0.0002,2]
[375877975,1753771840742,-162.32,0.0002,2]
[375877977,1753771840751,-460.0,0.0002,2]
[375877979,1753771840760,-539.54,0.0002,2]
[375877981,1753771840769,-417.73,0.0002,2]
[375877983,1753771840778,-460.0,0.0002,2]
[375877985,1753771840788,-460.0,0.0002,2]
[375877987,1753771840797,-460.0,0.0002,2]
[375877989,1753771840807,-493.48059537,0.0002,2]
[375877991,1753771840816,-263.8,0.0002,2]
[375877993,1753771840826,-460.0,0.0002,2]
[375877995,1753771840835,-580.66,0.0002,2]